bitfinex/quotes_ETHUSD_20250529
["timestamp","ask_amount","ask_price","bid_price","bid_amount"]
[1748538880376,0.8818,2643.5,2643.1,10.0]
[1748538880534,4.8428,2643.5,2643.3,10.0]
[1748538881792,4.8428,2643.5,2643.1,13.78337373]
[1748538882138,0.8264,2643.4,2642.4,4.08860459]
[1748538882437,3.78324781,2643.3,2642.8,8.0]
[1748538882640,4.60990011,2643.1,2642.6,3.78407456]
[1748538882838,0.85699001,2643.0,2642.6,3.78407456]
[1748538883043,3.96,2642.9,2642.6,3.78407456]
[1748538883676,3.96,2642.9,2642.6,3.78413029]
[1748538883906,0.8264,2643.1,2642.8,3.79957]
[1748538884038,0.8264,2643.5,2643.2,3.78329297]
[1748538884349,3.96,2643.5,2643.2,3.78322963]
[1748538884549,3.96,2643.5,2643.3,10.0]
[1748538884747,5.23033364,2643.5,2643.3,10.0]
[1748538884978,0.8264,2643.4,2643.0,3.78356315]
[1748538885280,4.60943289,2643.4,2643.0,18.0]
[1748538885439,4.60943289,2643.4,2643.0,8.0]
[1748538885782,6.00687841,2643.4,2642.9,11.78369999]
[1748538886453,2.22380992,2643.4,2643.0,3.78349689]
[1748538886644,2.22380992,2643.4,2643.0,13.78349689]
[1748538886843,0.8264,2643.4,2643.0,13.78349689]
[1748538887058,0.8264,2643.4,2643.1,10.0]
[1748538887279,4.60942925,2643.4,2643.1,10.0]
[1748538887439,4.60942925,2643.4,2643.0,10.0]
[1748538887641,4.60942925,2643.4,2643.0,3.78357378]
[1748538887845,5.8798016,2643.4,2643.0,3.78357378]
[1748538888139,3.78378234,2642.9,2642.6,1.061]
[1748538888352,0.8691,2642.8,2642.3,3.7844981]
[1748538888551,0.8691,2642.8,2642.6,3.78405426]
[1748538888774,0.8691,2642.8,2642.1,0.1304]
[1748538888775,0.8691,2642.8,2642.5,8.0]
[1748538889156,0.8691,2642.8,2642.5,11.78420606]
[1748538889342,0.8691,2642.8,2642.1,0.1304]
[1748538889343,5.51430722,2642.8,2642.3,3.78447533]
[1748538889672,5.51430206,2642.8,2642.5,10.0]
[1748538889985,5.51430206,2642.8,2642.4,8.0]
[1748538889986,3.78412918,2642.7,2642.4,8.0]
[1748538890181,0.8464,2642.5,2642.2,0.38591713]
[1748538890391,0.8464,2642.5,2642.0,3.78501135]
[1748538890687,0.8464,2642.5,2642.2,10.0]
[1748538890915,0.8464,2642.5,2642.2,3.78470489]
[1748538891241,0.8464,2642.5,2642.2,10.0]
[1748538891480,0.8464,2642.5,2642.2,3.7846638]
[1748538891654,0.8464,2642.5,2642.1,10.0]
[1748538891982,1.7053477,2642.5,2642.2,10.0]
[1748538892497,5.48969191,2642.5,2642.2,10.0]
[1748538892687,5.48969191,2642.5,2642.1,0.37999152]
[1748538892995,5.48969191,2642.5,2642.2,10.0]
[1748538893155,1.7053477,2642.5,2642.2,10.0]
[1748538893359,1.7053477,2642.5,2642.3,10.0]
[1748538893660,0.8567,2642.3,2641.4,2.22902611]
[1748538893863,7.74383594,2642.2,2641.6,8.0]
[1748538894096,3.78496437,2642.1,2641.6,3.78557353]
[1748538894321,0.8424,2642.0,2641.6,11.78557353]
[1748538894464,3.78521509,2641.9,2641.3,1.06]
[1748538894674,0.8424,2642.0,2641.6,12.067674]
[1748538894866,0.8424,2642.0,2641.7,11.78542775]
[1748538895404,0.8424,2642.0,2641.7,8.0]
[1748538896869,0.8424,2642.0,2641.7,11.78535838]
[1748538897175,7.74379585,2642.2,2641.7,11.78535838]
[1748538897176,3.959,2642.1,2641.9,3.78515462]
[1748538897424,3.959,2642.1,2641.9,10.0]
[1748538897577,3.959,2642.1,2641.8,13.78522811]
[1748538898005,3.959,2642.1,2641.9,10.0]
[1748538898209,3.959,2642.1,2641.9,13.78501286]
[1748538898451,0.8904,2642.2,2642.1,3.78486809]
[1748538898610,3.959,2642.4,2642.2,13.78462184]
[1748538898813,3.959,2642.5,2642.2,3.78462184]
[1748538899120,3.959,2642.5,2642.1,13.78478757]
[1748538899478,3.959,2642.5,2642.1,3.78478757]
[1748538899681,3.959,2642.5,2642.3,10.0]
[1748538900217,7.74343104,2642.5,2642.1,1.99040997]
[1748538900419,3.959,2642.5,2642.1,10.0]
[1748538900630,0.8516,2642.7,2642.1,3.78486357]
[1748538900834,0.8516,2642.7,2642.5,3.78418637]
[1748538900975,0.8516,2642.7,2642.4,10.0]
[1748538901177,7.74315197,2642.6,2642.2,10.0]
[1748538901427,3.959,2642.6,2642.3,10.0]
[1748538901627,3.78431275,2642.5,2642.3,10.0]
[1748538902030,7.74316624,2642.6,2642.2,10.0]
[1748538902254,3.78435636,2642.5,2642.2,10.0]
[1748538902589,3.78435636,2642.5,2642.3,10.0]
[1748538902794,7.74323314,2642.6,2642.3,10.0]
[1748538903040,3.78436222,2642.5,2642.2,10.0]
[1748538903346,3.78436222,2642.5,2642.3,10.0]
[1748538903508,3.78436222,2642.5,2642.2,10.0]
[1748538903844,3.78437388,2642.5,2642.3,10.0]
[1748538904045,7.74320859,2642.6,2642.2,10.0]
[1748538904457,7.74320859,2642.6,2642.3,10.0]
[1748538904653,3.959,2642.5,2642.3,10.0]
[1748538904954,0.8516,2642.7,2642.3,3.78456771]
[1748538905398,0.8516,2642.7,2642.4,7.51041602]
[1748538905598,3.959,2642.6,2642.4,3.78441302]
[1748538906094,3.959,2642.6,2642.5,6.80354017]
[1748538906456,11.58312758,2643.4,2642.5,6.80354017]
[1748538906457,0.8627,2643.0,2642.7,13.78400398]
[1748538906595,4.8207,2643.0,2642.9,10.0]
[1748538906943,4.8207,2643.0,2642.6,6.63157465]
[1748538907152,8.60428108,2643.0,2642.7,6.63157465]
[1748538907312,8.60428108,2643.0,2642.5,3.78422091]
[1748538907830,8.60428108,2643.0,2642.6,2.1652]
[1748538908034,9.84305452,2643.0,2642.6,2.1652]
[1748538908237,3.78410097,2642.7,2642.4,10.0]
[1748538908451,0.8627,2642.6,2642.2,12.063308]
[1748538908739,0.8627,2642.6,2642.3,10.0]
[1748538908904,3.78435816,2642.5,2642.2,10.0]
[1748538909099,7.74243838,2642.4,2642.1,10.0]
[1748538909633,7.74243838,2642.4,2642.0,3.78499639]
[1748538909634,7.74243838,2642.4,2642.0,18.0]
[1748538909849,7.74243838,2642.4,2642.0,8.0]
[1748538910255,0.8716,2642.1,2641.6,0.1322]
[1748538910456,3.78515462,2641.9,2641.3,0.38089941]
[1748538910640,3.78551239,2641.7,2641.4,10.0]
[1748538910854,3.958,2641.7,2641.4,10.0]
[1748538911078,3.958,2641.7,2641.5,10.0]
[1748538911548,3.958,2641.7,2641.5,3.7856358]
[1748538912115,3.958,2641.7,2641.4,11.78579115]
[1748538912379,3.958,2641.7,2641.4,8.0]
[1748538912524,0.826,2641.5,2641.4,10.0]
[1748538912726,0.826,2641.5,2641.4,2.533597]
[1748538913058,3.958,2641.9,2641.5,3.78564555]
[1748538913215,0.826,2642.1,2641.5,3.78568006]
[1748538913422,3.958,2642.0,2641.6,3.78550229]
[1748538913740,3.958,2642.0,2641.5,2.252422]
[1748538913939,3.958,2642.0,2641.6,13.78556149]
[1748538914144,3.958,2642.0,2641.4,5.766059]
[1748538914432,3.78456557,2642.4,2642.1,3.78480564]
[1748538914433,3.958,2642.3,2642.1,3.78480564]
[1748538914633,3.958,2642.3,2641.7,1.90802229]
[1748538914634,3.958,2642.3,2641.8,12.09564]
[1748538914833,3.958,2642.3,2641.9,3.78508898]
[1748538915084,0.856,2642.4,2642.0,3.78493415]
[1748538915387,3.958,2642.5,2642.1,8.4593515]
[1748538915516,3.958,2642.5,2642.3,3.78451626]
[1748538915716,3.78392897,2642.8,2642.3,3.78451626]
[1748538915991,4.64046358,2642.9,2642.4,3.78437563]
[1748538916158,3.958,2642.7,2642.4,3.78437563]
[1748538916426,3.78415817,2642.6,2642.1,10.1322]
[1748538916751,3.958,2642.7,2642.1,11.69961614]
[1748538916955,3.78421723,2642.6,2642.2,10.0]
[1748538917403,3.78433111,2642.5,2642.2,10.0]
[1748538917603,3.78433111,2642.5,2642.1,1.56741614]
[1748538917604,3.78422748,2642.6,2642.3,10.0]
[1748538917812,3.958,2642.6,2642.4,15.19243]
[1748538917981,3.78395504,2642.8,2642.2,16.651494]
[1748538918187,7.74195504,2642.8,2642.3,5.60640012]
[1748538918381,7.74195504,2642.8,2642.5,10.0]
[1748538918712,7.74195504,2642.8,2642.2,10.0]
[1748538918713,3.958,2642.8,2642.2,10.0]
[1748538918914,3.78407238,2642.7,2642.2,8.26810369]
[1748538919118,3.958,2642.8,2642.1,8.0]
[1748538919261,7.74186849,2642.8,2642.3,3.7844926]
[1748538919466,0.8567,2642.9,2642.5,3.78425662]
[1748538919666,3.957,2642.8,2642.5,3.78425662]
[1748538919881,3.957,2642.8,2642.4,13.78439072]
[1748538920112,3.957,2642.8,2642.4,3.78439072]
[1748538920316,4.8137,2642.9,2642.5,1.37843907]
[1748538920623,4.8137,2642.9,2642.5,15.16267066]
[1748538920929,0.8561,2643.5,2642.6,18.470305]
[1748538921166,0.35152026,2643.6,2643.4,3.782935]
[1748538921311,0.35152026,2643.6,2643.3,3.78308557]
[1748538921623,0.35152026,2643.6,2643.3,3.78301357]
[1748538921829,0.35152026,2643.6,2643.3,10.0]
[1748538922163,3.78293054,2643.5,2643.3,0.3715866]
[1748538922527,3.78293054,2643.5,2643.2,10.0]
[1748538922731,4.13429894,2643.6,2643.3,10.0]
[1748538923037,4.13429894,2643.6,2643.2,10.0]
[1748538923210,4.13429894,2643.6,2643.3,10.0]
[1748538923412,4.13429894,2643.6,2643.3,10.38637894]
[1748538923610,4.13429894,2643.6,2643.3,0.38637894]
[1748538923971,4.13429894,2643.6,2643.3,10.0]
[1748538924135,4.13429894,2643.6,2643.2,10.0]
[1748538924796,0.35152026,2643.6,2643.3,3.8828]
[1748538925067,0.35152026,2643.6,2643.2,10.0]
[1748538925068,3.78293095,2643.5,2643.2,10.0]
[1748538925266,4.13428705,2643.6,2643.3,10.0]
[1748538925618,4.13428705,2643.6,2643.2,10.0]
[1748538926149,3.7828724,2643.5,2643.1,10.0]
[1748538926351,4.13431179,2643.6,2643.3,10.0]
[1748538926652,4.30752026,2643.6,2643.4,4.573936]
[1748538926836,0.35152026,2643.6,2643.5,10.0]
[1748538927017,0.35152026,2643.6,2643.5,6.53494]
[1748538927369,0.35152026,2643.6,2643.5,3.78286362]
[1748538927574,0.35152026,2643.6,2643.5,4.53944863]
[1748538927714,0.35152026,2643.6,2643.5,9.09610063]
[1748538928592,0.35152026,2643.6,2643.5,17.09610063]
[1748538928870,0.35152026,2643.6,2643.5,17.77830063]
[1748538929032,0.35152026,2643.6,2643.5,10.71981974]
[1748538929231,0.35152026,2643.6,2643.5,16.34856399]
[1748538930956,0.35152026,2643.6,2643.5,15.79856399]
[1748538931250,0.35152026,2643.6,2643.5,19.75356399]
[1748538932571,0.35152026,2643.6,2643.2,6.07342979]
[1748538932572,0.35152026,2643.6,2643.2,0.51439377]
[1748538932722,3.78287617,2643.5,2643.2,0.38219377]
[1748538932926,0.35152026,2643.6,2643.1,0.37]
[1748538932927,0.35152026,2643.6,2643.1,3.78341085]
[1748538933123,0.35152026,2643.6,2643.2,11.78323408]
[1748538933862,0.35152026,2643.6,2643.3,14.631468]
[1748538934159,0.35152026,2643.6,2643.2,3.78321448]
[1748538934160,4.13425667,2643.6,2643.2,10.37028075]
[1748538934362,3.78287278,2643.5,2643.2,0.37028075]
[1748538934526,3.78287278,2643.5,2643.1,10.0]
[1748538934721,3.78287278,2643.5,2643.0,3.78347735]
[1748538935157,5.03017225,2643.6,2643.2,5.143699]
[1748538935374,1.24737304,2643.6,2643.4,10.0]
[1748538935582,0.35152026,2643.6,2643.4,3.431178]
[1748538935728,0.35152026,2643.6,2643.3,10.0]
[1748538935729,0.35152026,2643.6,2643.5,8.65747262]
[1748538936062,0.35152026,2643.6,2643.5,16.65747262]
[1748538936774,0.35152026,2643.6,2643.5,11.928854]
[1748538937076,0.35152026,2643.6,2643.5,14.42597262]
[1748538937224,0.35152026,2643.6,2643.5,8.0]
[1748538937420,0.35152026,2643.6,2643.2,0.37884745]
[1748538937421,1.18212026,2643.6,2643.2,0.37884745]
[1748538937763,1.18212026,2643.6,2643.1,10.0]
[1748538937764,0.8306,2643.3,2643.1,2.375312]
[1748538937925,0.8306,2643.5,2642.9,11.78366691]
[1748538938135,4.61354004,2643.5,2643.0,11.78355736]
[1748538938446,4.61354004,2643.5,2643.0,12.16663986]
[1748538938627,4.61346916,2643.5,2643.2,10.0]
[1748538938822,0.8306,2643.5,2643.2,3.78325722]
[1748538939020,0.35152026,2643.6,2643.4,3.78300561]
[1748538939260,0.35152026,2643.6,2643.5,5.86286362]
[1748538939464,0.35152026,2643.6,2643.5,3.78286362]
[1748538940959,0.35152026,2643.6,2643.5,10.0]
[1748538941260,0.35152026,2643.6,2643.5,3.78286362]
[1748538941647,0.35152026,2643.6,2643.5,13.53946445]
[1748538943441,0.35152026,2643.6,2643.5,23.20502374]
[1748538943664,0.35152026,2643.6,2643.5,22.46862274]
[1748538944061,0.35152026,2643.6,2643.5,1.75660083]
[1748538944261,8.0872937,2643.6,2643.0,0.37744837]
[1748538944586,8.0872937,2643.6,2643.0,3.826]
[1748538944587,0.9018,2643.2,2643.0,3.826]
[1748538944735,0.9018,2643.2,2642.9,10.0]
[1748538944937,0.9018,2643.2,2642.7,1.057]
[1748538944938,8.63814151,2643.2,2642.7,1.057]
[1748538945136,3.78350034,2643.1,2642.8,18.0]
[1748538945386,3.78368311,2643.0,2642.7,0.37018131]
[1748538945677,4.8548,2643.2,2642.1,1.057]
[1748538945678,3.78383433,2642.9,2642.4,3.78436363]
[1748538945881,9.12361024,2643.2,2642.5,3.78419364]
[1748538946081,3.78343611,2643.1,2642.4,13.78437747]
[1748538946377,3.78357926,2643.0,2642.4,8.0]
[1748538946581,3.78382429,2642.9,2642.6,10.0]
[1748538946738,3.78382429,2642.9,2642.4,4.97534009]
[1748538946739,3.78429517,2642.5,2642.4,0.38390574]
[1748538947190,0.8287,2642.7,2641.8,11.321941]
[1748538947474,7.73722516,2642.6,2642.2,10.0]
[1748538947673,3.953,2642.6,2642.1,3.78483628]
[1748538947832,3.953,2642.6,2642.1,7.87188097]
[1748538948037,3.953,2642.6,2642.2,2.933894]
[1748538948379,3.78416435,2642.6,2642.2,10.0]
[1748538948731,0.8287,2642.7,2642.2,10.0]
[1748538948732,0.8287,2642.7,2642.3,10.0]
[1748538949046,3.78323621,2643.3,2642.6,10.0]
[1748538949239,7.73623621,2643.3,2642.8,13.78385643]
[1748538949434,3.78322925,2643.3,2642.7,8.0]
[1748538949659,7.73622925,2643.3,2642.8,20.162096]
[1748538949990,3.953,2643.3,2643.0,10.0]
[1748538950137,3.78303119,2643.4,2643.1,1.68024988]
[1748538950474,0.8966,2643.5,2643.1,3.78342424]
[1748538950775,0.8966,2643.5,2642.9,10.0]
[1748538950776,3.78301411,2643.4,2643.0,10.0]
[1748538951075,0.8966,2643.5,2643.0,1.534307]
[1748538951239,0.8966,2643.5,2642.9,2.374002]
[1748538951431,0.8966,2643.5,2643.0,10.0]
[1748538951432,3.78325655,2643.3,2643.0,10.0]
[1748538951629,3.78325655,2643.3,2643.0,2.369302]
[1748538951974,3.7830462,2643.4,2643.0,2.369302]
[1748538952162,3.7830462,2643.4,2642.9,6.15770132]
[1748538952360,3.78315507,2643.3,2643.0,12.369302]
[1748538952566,3.78315507,2643.3,2643.0,2.369302]
[1748538953973,3.78306121,2643.4,2643.0,2.369302]
[1748538954140,3.78300673,2643.4,2643.0,2.369302]
[1748538954785,3.78316672,2643.3,2643.0,2.369302]
[1748538955741,4.8496,2643.5,2642.9,10.0]
[1748538956076,4.8496,2643.5,2642.7,8.0]
[1748538956077,3.78348903,2643.1,2642.7,8.0]
[1748538956294,3.78336667,2643.2,2642.7,3.78399554]
[1748538956458,7.73636667,2643.2,2642.7,13.78399554]
[1748538956856,7.73636667,2643.2,2642.8,2.001965]
[1748538957177,4.68146593,2643.4,2642.8,2.001965]
[1748538957178,3.78322328,2643.3,2642.8,6.16245809]
[1748538957386,3.78306392,2643.4,2643.0,10.0]
[1748538957387,7.73612016,2643.4,2643.0,10.0]
[1748538957540,0.8966,2643.5,2643.0,10.0]
[1748538957846,0.8966,2643.5,2643.0,10.1245]
[1748538958044,0.8966,2643.5,2643.2,3.78322972]
[1748538958352,0.35152026,2643.6,2643.2,3.78322972]
[1748538958565,4.13424603,2643.6,2643.1,15.04108688]
[1748538958755,4.13424603,2643.6,2643.2,12.259825]
[1748538958963,4.13424603,2643.6,2643.3,10.0]
[1748538959276,3.78300673,2643.4,2643.0,10.0]
[1748538959485,3.78309544,2643.4,2643.0,10.0]
[1748538959845,3.78309544,2643.4,2643.1,10.0]
[1748538960035,5.40561047,2643.6,2643.1,3.78343535]
[1748538960241,5.40561047,2643.6,2643.1,3.78335548]
[1748538960242,8.08624458,2643.6,2643.1,3.78335548]
[1748538960482,8.08624458,2643.6,2642.9,13.78366707]
[1748538960483,4.30352026,2643.6,2642.9,13.78366707]
[1748538960782,3.78332689,2643.2,2642.9,10.0]
[1748538960979,3.78345402,2643.1,2642.8,8.0]
[1748538961143,4.64527239,2643.2,2642.8,8.0]
[1748538961345,3.78343611,2643.1,2642.5,0.37]
[1748538961685,0.8354,2643.0,2642.2,10.339035]
[1748538961981,3.952,2642.9,2642.5,3.78423139]
[1748538962279,3.952,2642.9,2642.4,10.0]
[1748538962482,3.952,2642.9,2642.6,10.0]
[1748538962696,0.8354,2643.0,2642.7,10.0]
[1748538962853,4.7874,2643.0,2642.6,3.78401284]
[1748538963607,0.863,2643.5,2642.9,13.171085]
[1748538963761,0.863,2643.5,2643.2,3.78329297]
[1748538964106,0.863,2643.5,2643.1,10.0]
[1748538964276,4.64596373,2643.5,2643.0,3.7834807]
[1748538964597,3.7830159,2643.4,2642.8,16.721739]
[1748538964805,0.863,2643.5,2642.6,1.7568392]
[1748538964806,3.78364187,2643.0,2642.6,10.0]
[1748538964960,3.78386559,2642.8,2642.5,10.0]
[1748538965161,3.78386559,2642.8,2642.5,8.0]
[1748538965457,3.78378741,2642.9,2642.5,8.0]
[1748538966198,3.78402827,2642.7,2642.3,21.78447988]
[1748538966383,0.863,2642.6,2642.3,8.0]
[1748538966588,0.863,2642.6,2642.5,10.0]
[1748538967258,3.78378284,2642.9,2642.5,3.404555]
[1748538967569,0.863,2643.3,2643.0,3.78356736]
[1748538967754,4.815,2643.5,2643.2,10.0]
[1748538967957,4.815,2643.5,2642.9,3.78364554]
[1748538967958,0.863,2643.5,2642.9,3.78364554]
[1748538968200,4.64593784,2643.5,2643.1,10.0]
[1748538968562,4.64593784,2643.5,2642.7,3.952]
[1748538968563,4.6459353,2643.5,2642.9,10.0]
[1748538968761,3.78350542,2643.1,2642.7,5.847203]
[1748538969181,3.78350542,2643.1,2642.7,10.0]
[1748538969586,3.78350542,2643.1,2642.8,10.0]
[1748538970201,3.78350542,2643.1,2642.9,10.0]
[1748538970400,3.78350542,2643.1,2642.6,11.78411227]
[1748538970401,3.78352314,2643.1,2642.6,11.78411227]
[1748538970587,3.78352314,2643.1,2642.6,13.29592573]
[1748538970792,3.78367417,2643.0,2642.5,11.78428444]
[1748538970988,3.78367417,2643.0,2642.7,10.0]
[1748538971190,0.8684,2643.2,2642.8,10.0]
[1748538971390,3.78326084,2643.3,2643.0,10.0]
[1748538971700,3.78343687,2643.1,2642.7,10.0]
[1748538971997,3.78367542,2643.0,2642.6,10.0]
[1748538972202,0.9073,2643.0,2642.7,10.0]
[1748538972603,0.9073,2643.0,2642.8,10.0]
[1748538972902,3.78372242,2642.9,2642.6,10.0]
[1748538973101,3.78376667,2642.9,2642.5,8.0]
[1748538973274,3.78394545,2642.8,2642.3,8.0]
[1748538973475,0.9073,2643.0,2642.7,3.78400066]
[1748538973704,4.8593,2643.0,2642.8,10.0]
[1748538973864,3.952,2643.0,2642.9,10.0]
[1748538974059,3.78341271,2643.2,2642.8,2.573226]
[1748538974060,4.69071271,2643.2,2642.8,3.7838517]
[1748538974301,4.8593,2643.4,2643.0,3.78351006]
[1748538974502,0.9073,2643.4,2643.0,3.78350771]
[1748538974806,0.35152026,2643.6,2643.2,8.96979029]
[1748538975004,0.35152026,2643.6,2643.5,3.78286362]
[1748538975303,0.35152026,2643.6,2643.1,8.1148]
[1748538975503,0.35152026,2643.6,2642.9,8.0]
[1748538975504,0.9073,2643.5,2642.9,8.0]
[1748538975677,0.9073,2643.5,2642.9,9.69066142]
[1748538975878,3.78303582,2643.4,2642.9,13.47428519]
[1748538976078,0.9073,2643.5,2643.2,10.0]
[1748538976321,0.9073,2643.5,2643.3,13.208745]
[1748538976468,0.9073,2643.5,2643.3,3.208745]
[1748538976669,0.35152026,2643.6,2643.4,13.374475]
[1748538976897,0.35152026,2643.6,2643.5,21.64017062]
[1748538977095,0.35152026,2643.6,2643.5,11.64017062]
[1748538977298,0.35152026,2643.6,2643.5,21.06676004]
[1748538977699,0.3598733,2644.6,2644.2,36.70794918]
[1748538978032,4.14123528,2644.6,2644.2,2.520321]
[1748538978308,0.3598733,2644.6,2644.2,6.30218318]
[1748538978665,0.3598733,2644.6,2644.2,2.520321]
[1748538978870,0.3598733,2644.6,2644.2,10.0]
[1748538979103,3.78149477,2644.5,2644.1,2.085301]
[1748538979329,3.78149477,2644.5,2644.2,2.482361]
[1748538979472,3.78164907,2644.4,2644.2,10.0]
[1748538979674,3.78149466,2644.5,2644.1,2.104101]
[1748538979993,3.78149466,2644.5,2644.2,2.608461]
[1748538980310,3.78164792,2644.4,2644.0,8.0]
[1748538980496,3.78164792,2644.4,2644.1,2.104101]
[1748538980696,0.3598733,2644.6,2644.2,2.007101]
[1748538980902,3.78164355,2644.4,2644.1,10.0]
[1748538981219,1.21948416,2644.3,2644.1,12.007101]
[1748538981371,1.21948416,2644.3,2644.2,12.007101]
[1748538981571,1.21948416,2644.3,2644.2,10.0]
[1748538981773,5.00130945,2644.3,2644.2,10.0]
[1748538981981,5.00130945,2644.3,2644.1,10.0]
[1748538982224,1.21948416,2644.3,2644.1,10.0]
[1748538982519,1.21948416,2644.3,2644.2,2.482361]
[1748538982873,1.21948416,2644.3,2644.2,2.007101]
[1748538983075,1.21948416,2644.3,2644.2,10.0]
[1748538983271,5.00120332,2644.3,2644.2,10.0]
[1748538983511,3.78186218,2644.2,2643.7,8.0]
[1748538983725,3.78186218,2644.2,2643.7,3.78256809]
[1748538983726,3.78197387,2644.2,2643.7,3.78256809]
[1748538983879,3.951,2644.2,2643.9,10.0]
[1748538984072,3.78200521,2644.1,2643.7,10.0]
[1748538984272,3.78208318,2644.1,2643.7,8.0]
[1748538984672,7.73289264,2644.2,2643.7,11.78248913]
[1748538984979,3.951,2644.2,2643.7,8.0]
[1748538985178,3.951,2644.2,2643.9,10.0]
[1748538985495,8.33673981,2644.2,2643.9,3.080935]
[1748538985814,4.55476188,2644.2,2643.9,3.080935]
[1748538986014,8.33670279,2644.2,2643.9,3.080935]
[1748538986227,3.78214826,2644.0,2643.5,0.38151136]
[1748538986516,4.8188,2643.9,2643.5,3.78275062]
[1748538986731,4.8188,2643.9,2643.6,3.78270958]
[1748538986874,4.8188,2643.9,2643.3,4.906163]
[1748538987079,4.8188,2643.9,2643.5,3.782841]
[1748538987404,8.60111704,2643.9,2643.5,0.37089962]
[1748538987602,0.8688,2643.9,2643.6,10.0]
[1748538987820,4.8188,2643.9,2643.6,10.0]
[1748538988118,4.8188,2643.9,2643.6,20.628864]
[1748538988434,0.9556187,2644.1,2643.8,10.0]
[1748538988435,0.8688,2644.1,2643.8,10.0]
[1748538988720,0.8688,2644.1,2643.6,3.78266239]
[1748538988721,3.781997,2644.2,2643.6,10.0]
[1748538988893,3.78230007,2643.9,2643.7,10.0]
[1748538989079,3.78230007,2643.9,2643.5,0.36972901]
[1748538989278,4.21726177,2644.1,2643.7,13.875854]
[1748538989535,0.35068416,2644.3,2643.7,4.0648]
[1748538989815,0.35068416,2644.3,2644.2,3.78186218]
[1748538990029,0.35068416,2644.3,2644.2,7.86277018]
[1748538990330,0.35068416,2644.3,2644.1,40.10626079]
[1748538990512,0.35068416,2644.3,2644.2,10.0]
[1748538990674,1.21948416,2644.3,2643.8,10.146668]
[1748538990878,1.21948416,2644.3,2644.0,8.0]
[1748538991288,0.35068416,2644.3,2644.2,6.22976218]
[1748538992033,0.35068416,2644.3,2644.1,10.0]
[1748538992239,0.35068416,2644.3,2644.1,13.78194418]
[1748538992385,0.35068416,2644.3,2644.2,10.0]
[1748538992772,0.35068416,2644.3,2644.2,6.98399218]
[1748538992917,0.35068416,2644.3,2644.1,12.04713]
[1748538993112,0.35068416,2644.3,2644.2,10.0]
[1748538993359,3.78186218,2644.2,2644.0,8.0]
[1748538993537,5.0085544,2644.3,2643.8,3.78242473]
[1748538993714,4.13245675,2644.3,2644.0,8.0]
[1748538993911,4.13245675,2644.3,2644.2,10.0]
[1748538994111,4.13245675,2644.3,2644.0,8.0]
[1748538994344,4.13245675,2644.3,2644.2,10.0]
[1748538994755,4.13245675,2644.3,2644.0,8.0]
[1748538994756,4.13245675,2644.3,2643.9,8.0]
[1748538994939,0.35068416,2644.3,2643.9,11.78226458]
[1748538995250,0.35068416,2644.3,2643.6,5.003]
[1748538995251,0.8296,2644.2,2643.7,18.0]
[1748538995553,1.62168608,2644.3,2643.5,4.44982446]
[1748538995554,3.949,2644.1,2643.5,0.38602446]
[1748538995753,3.78254134,2643.8,2643.5,0.38602446]
[1748538996053,7.73154134,2643.8,2643.4,10.0]
[1748538996252,3.78258379,2643.7,2643.4,10.0]
[1748538996476,3.78258379,2643.7,2643.3,10.0]
[1748538996644,3.78280864,2643.6,2643.3,10.0]
[1748538996850,3.78261084,2643.7,2643.3,10.0]
[1748538997047,8.2101395,2643.8,2643.1,19.08219882]
[1748538997363,3.78265278,2643.7,2643.2,10.0]
[1748538997659,0.8378,2644.0,2643.4,10.0]
[1748538997845,0.9026,2644.2,2643.9,2.029432]
[1748538998050,0.9026,2644.5,2644.2,3.78186218]
[1748538998233,0.3598733,2644.6,2644.2,13.95997918]
[1748538998437,0.3598733,2644.6,2644.2,19.05360218]
[1748539001828,0.3598733,2644.6,2644.2,16.53453718]
[1748539004651,0.3598733,2644.6,2644.2,12.752675]
[1748539004928,0.3598733,2644.6,2644.2,3.78186218]
[1748539004929,0.8722,2644.5,2644.2,3.78186218]
[1748539005231,0.8722,2644.5,2644.2,5.81733018]
[1748539005834,4.3078733,2644.6,2644.2,5.81733018]
[1748539006039,0.3598733,2644.6,2644.2,5.81733018]
[1748539006267,0.3598733,2644.6,2644.2,6.77726232]
[1748539006671,0.3598733,2644.6,2644.2,14.89096232]
[1748539008147,0.3598733,2644.6,2644.2,15.44096232]
[1748539011787,0.3598733,2644.6,2644.2,19.38796232]
[1748539013390,0.3598733,2644.6,2644.2,15.44096232]
[1748539013562,0.3598733,2644.6,2644.2,11.89245411]
[1748539013767,0.3598733,2644.6,2644.2,33.23979511]
[1748539014882,0.3598733,2644.6,2644.5,3.78143316]
[1748539015189,0.3598733,2644.6,2644.5,18.02620916]
[1748539015400,0.3598733,2644.6,2644.5,18.13990916]
[1748539015702,0.3598733,2644.6,2644.5,27.80695817]
[1748539016162,0.3598733,2644.6,2644.5,27.57323317]
[1748539017574,0.3598733,2644.6,2644.5,28.12323317]
[1748539017782,0.8539,2645.3,2645.2,3.78043248]
[1748539018405,0.8539,2645.3,2644.9,10.0]
[1748539018614,0.8539,2645.3,2645.1,12.188545]
[1748539018788,0.8539,2645.3,2645.1,3.78050081]
[1748539018989,1.22107297,2645.5,2645.3,3.78021874]
[1748539019195,1.22107297,2645.5,2645.4,3.78014666]
[1748539019501,1.22107297,2645.5,2645.4,6.46271066]
[1748539019825,0.35037297,2645.5,2645.4,14.46271066]
[1748539020921,1.19977297,2645.5,2645.1,10.029528]
[1748539021215,1.19977297,2645.5,2645.3,10.0]
[1748539021541,1.19977297,2645.5,2645.3,10.38135544]
[1748539021542,1.69772898,2645.5,2645.3,10.38135544]
[1748539021718,1.19977297,2645.5,2645.4,11.40868566]
[1748539021876,0.35037297,2645.5,2645.4,6.21448666]
[1748539022083,0.35037297,2645.5,2645.4,3.78014666]
[1748539022794,0.35037297,2645.5,2645.3,3.78026407]
[1748539022993,0.35037297,2645.5,2645.3,10.0]
[1748539023189,0.35037297,2645.5,2645.3,10.37266423]